bitfinex-derivatives/quotes_ETHF0:USTF0_20251028
["timestamp","ask_amount","ask_price","bid_price","bid_amount"]
[1761661690508,0.7495,4158.2,4158.1,0.5697]
[1761661690806,0.4375956,4158.2,4158.1,0.5697]
[1761661691012,0.0018956,4158.2,4158.1,0.7887]
[1761661691209,0.4375956,4158.2,4158.1,0.7887]
[1761661691410,0.0018956,4158.2,4158.1,0.7887]
[1761661691615,0.0018956,4158.2,4158.1,1.22161]
[1761661691916,0.0018956,4158.2,4158.1,0.8607]
[1761661692119,0.0018956,4158.2,4158.1,0.7887]
[1761661693411,0.0018956,4158.2,4158.1,0.8607]
[1761661694718,0.0018956,4158.2,4158.1,0.7887]
[1761661694918,0.0018956,4158.2,4158.1,0.8607]
[1761661696021,0.0018956,4158.2,4158.1,0.7887]
[1761661697612,0.4375956,4158.2,4158.1,0.7887]
[1761661697821,0.4357,4158.1,4158.0,3.3401]
[1761661698023,0.0043956,4158.2,4158.1,0.4477]
[1761661698424,0.0043956,4158.2,4158.1,0.7887]
[1761661699120,0.0043956,4158.2,4158.1,1.22161]
[1761661699521,0.0043956,4158.2,4158.1,1.29361]
[1761661699926,3.5216,4159.7,4158.9,0.341]
[1761661700117,0.2206,4159.2,4159.1,0.7887]
[1761661700318,0.4357,4159.2,4159.1,0.7887]
[1761661700522,41.2357,4159.2,4159.1,0.7887]
[1761661701023,0.22329243,4159.2,4159.1,0.7904978]
[1761661701422,0.43839243,4159.2,4159.1,0.7904978]
[1761661701724,0.75219243,4159.2,4159.1,0.5714978]
[1761661702426,0.75219243,4159.2,4159.1,0.3427978]
[1761661702623,0.75219243,4159.2,4159.1,0.0017978]
[1761661703622,0.82419243,4159.2,4159.1,0.0017978]
[1761661703930,0.75219243,4159.2,4159.1,0.0017978]
[1761661704628,0.75219243,4159.2,4159.1,0.5714978]
[1761661704830,0.43839243,4159.2,4159.1,0.5714978]
[1761661705222,0.43839243,4159.2,4159.1,0.7904978]
[1761661705428,0.75219243,4159.2,4159.1,0.3427978]
[1761661705921,0.43839243,4159.2,4159.1,0.7904978]
[1761661708227,0.22329243,4159.2,4159.1,0.7904978]
[1761661710229,0.2206,4159.5,4159.4,0.7887]
[1761661710431,0.7495,4159.5,4159.4,0.7887]
[1761661710632,0.7495,4159.4,4159.3,3.5488]
[1761661710931,0.4357,4159.8,4159.7,0.7887]
[1761661711330,0.43815734,4159.8,4159.7,0.7887]
[1761661712626,0.43815734,4159.8,4159.5,0.702]
[1761661712627,0.7495,4159.6,4159.5,0.702]
[1761661712832,0.4357,4159.6,4159.5,0.921]
[1761661713036,0.00245734,4159.8,4159.7,0.7887]
[1761661713330,0.00245734,4159.8,4159.7,1.22144]
[1761661713735,0.22305734,4159.8,4159.7,0.7887]
[1761661714131,0.43815734,4159.8,4159.7,0.7887]
[1761661714733,0.77585734,4159.8,4159.7,0.341]
[1761661715135,0.77585734,4159.8,4159.7,0.5521]
[1761661715434,0.43815734,4159.8,4159.7,0.7822]
[1761661715625,0.77585734,4159.8,4159.7,0.7822]
[1761661715828,0.77585734,4159.8,4159.7,0.341]
[1761661716030,0.4351,4159.6,4159.5,0.8983]
[1761661716931,0.2227,4159.6,4159.5,0.8983]
[1761661717131,0.4351,4159.6,4159.5,0.8983]
[1761661717736,0.2227,4159.6,4159.5,1.33106]
[1761661717938,0.00245734,4159.8,4159.7,0.766]
[1761661718439,0.00245734,4159.8,4159.7,1.19874]
[1761661719537,0.22515734,4159.8,4159.7,0.766]
[1761661719834,0.43755734,4159.8,4159.7,0.766]
[1761661721638,0.2227,4159.6,4159.5,0.1323]
[1761661721834,0.7728,4159.6,4159.5,0.5359]
[1761661722442,0.4351,4159.6,4159.5,0.6657]
[1761661722941,0.4351,4159.6,4159.5,0.8958]
[1761661723538,0.00245734,4159.8,4159.7,0.766]
[1761661724844,0.00245734,4159.8,4159.7,1.19874]
[1761661726738,0.00245734,4159.8,4159.7,1.27074]
[1761661726938,0.00245734,4159.8,4159.7,1.19874]
[1761661727343,0.00245734,4159.8,4159.7,1.27074]
[1761661728044,0.00245734,4159.8,4159.7,1.19874]
[1761661728246,0.00245734,4159.8,4159.7,1.27074]
[1761661729343,0.00245734,4159.8,4159.7,1.19874]
[1761661729543,0.00245734,4159.8,4159.7,1.27074]
[1761661729744,0.00245734,4159.8,4159.7,1.19874]
[1761661730244,0.00245734,4159.8,4159.7,1.27074]
[1761661731340,40.8,4160.6,4160.5,0.8958]
[1761661731651,0.2227,4161.1,4161.0,0.8958]
[1761661732044,0.3377,4161.0,4160.7,0.3248]
[1761661732250,0.7728,4160.8,4160.7,0.5359]
[1761661732445,0.77497119,4160.8,4160.7,0.5359]
[1761661733148,0.2227,4160.6,4160.1,0.4327]
[1761661733351,0.33987119,4160.8,4160.1,0.4412]
[1761661733546,0.77497119,4160.8,4160.7,0.2111]
[1761661733741,0.7728,4160.6,4160.5,0.3409]
[1761661733946,0.7728,4160.6,4160.5,0.6657]
[1761661734255,0.7728,4160.6,4160.5,0.8958]
[1761661734256,0.4351,4160.6,4160.5,0.8958]
[1761661736042,0.00217119,4160.8,4160.7,0.4412]
[1761661736247,0.22487119,4160.8,4160.7,0.766]
[1761661736448,0.50927119,4160.8,4160.7,0.766]
[1761661736648,0.43727119,4160.8,4160.7,0.766]
[1761661736849,0.77497119,4160.8,4160.7,0.3248]
[1761661737047,0.7728,4160.6,4160.5,0.3248]
[1761661737552,0.7728,4160.6,4160.5,0.5359]
[1761661737747,0.8448,4160.6,4160.5,0.5359]
[1761661737949,0.2227,4160.1,4160.0,3.7788]
[1761661738151,0.7728,4160.5,4160.4,0.2111]
[1761661738351,0.7728,4160.5,4160.4,0.5359]
[1761661738550,0.4351,4160.5,4160.4,0.766]
[1761661739857,0.2227,4160.5,4160.4,0.766]
[1761661740351,0.4351,4160.5,4160.4,0.766]
[1761661740757,0.22487119,4160.8,4160.7,0.766]
[1761661741057,0.43727119,4160.8,4160.7,0.766]
[1761661741259,0.77497119,4160.8,4160.7,0.766]
[1761661741661,0.77497119,4160.8,4160.7,0.5359]
[1761661741961,0.7728,4160.6,4160.5,0.6657]
[1761661742657,0.2227,4160.1,4160.0,3.7788]
[1761661743052,0.00217119,4160.8,4160.4,0.4412]
[1761661743256,0.22487119,4160.8,4160.7,0.766]
[1761661743562,0.77497119,4160.8,4160.7,0.766]
[1761661743860,0.43727119,4160.8,4160.7,0.766]
[1761661745352,0.22487119,4160.8,4160.7,0.766]
[1761661745558,0.00217119,4160.8,4160.7,0.766]
[1761661745759,0.21977119,4160.8,4160.7,0.766]
[1761661746460,0.00217119,4160.8,4160.7,0.766]
[1761661746959,0.00217119,4160.8,4160.7,1.19864]
[1761661747349,0.00217119,4160.8,4160.7,1.27064]
[1761661747752,0.7814,4162.1,4162.0,0.5588]
[1761661747954,0.7814,4161.6,4161.5,0.4681]
[1761661748152,0.7814,4161.6,4161.5,0.6925]
[1761661748359,0.7814,4161.6,4161.5,0.9053]
[1761661748360,41.2516,4161.6,4161.5,0.9053]
[1761661748759,41.25391198,4161.6,4161.5,0.9053]
[1761661749151,41.32591198,4161.6,4161.5,0.9053]
[1761661749353,41.25391198,4161.6,4161.5,0.9053]
[1761661749554,0.00231198,4161.6,4161.5,0.9053]
[1761661751465,0.00231198,4161.6,4161.5,0.9773]
[1761661751760,3.2078,4162.9,4161.5,0.9773]
[1761661751761,3.2078,4162.9,4162.1,0.7716]
[1761661752060,0.23,4162.6,4162.5,0.5709]
[1761661752257,41.2516,4162.6,4162.5,0.5709]
[1761661752463,41.5814,4162.6,4162.5,0.9053]
[1761661752660,40.8,4162.6,4162.5,0.9053]
[1761661753157,41.1298,4162.6,4162.5,0.5588]
[1761661753462,40.80268246,4162.6,4162.5,0.90769815]
[1761661753660,41.13248246,4162.6,4162.5,0.90769815]
[1761661753863,40.80268246,4162.6,4162.5,0.90769815]
[1761661757166,41.13248246,4162.6,4162.5,0.00239815]
[1761661757552,41.13248246,4162.6,4162.5,0.33679815]
[1761661758460,41.20448246,4162.6,4162.5,0.33679815]
[1761661758971,41.13248246,4162.6,4162.5,0.69489815]
[1761661759262,41.13248246,4162.6,4162.5,0.00239815]
[1761661759463,41.20448246,4162.6,4162.5,0.00239815]
[1761661760364,40.87468246,4162.6,4162.5,0.90769815]
[1761661760668,40.80268246,4162.6,4162.5,0.90769815]
[1761661761965,41.13248246,4162.6,4162.5,0.68329815]
[1761661762171,41.13248246,4162.6,4162.5,0.00239815]
[1761661762365,41.20448246,4162.6,4162.5,0.00239815]
[1761661762972,0.00268246,4162.6,4162.5,0.90769815]
[1761661763165,0.45428246,4162.6,4162.5,0.90769815]
[1761661763466,41.58408246,4162.6,4162.5,0.00239815]
[1761661763771,41.58408246,4162.6,4159.6,19.35722952]
[1761661763772,0.4516,4161.6,4159.6,19.35722952]
[1761661763975,0.6956,4161.0,4160.9,3.2078]
[1761661764368,0.9172,4161.0,4160.9,3.2078]
[1761661764565,0.3658,4160.5,4160.3,3.2078]
[1761661764864,0.7814,4160.4,4160.3,3.21073536]
[1761661766871,0.3298,4160.4,4160.3,3.21073536]
[1761661767065,0.3298,4160.4,4160.3,3.28273536]
[1761661767273,0.7814,4160.4,4160.3,3.21073536]
[1761661767966,0.5598,4160.4,4160.3,3.21073536]
[1761661768275,0.5598,4160.4,4160.3,3.28273536]
[1761661770071,0.5598,4160.4,4160.3,3.21073536]
[1761661770372,0.3298,4160.4,4160.3,3.28273536]
[1761661770573,0.3298,4160.4,4160.3,3.21073536]
[1761661770878,0.5598,4160.4,4160.3,0.00293536]
[1761661771070,0.7814,4160.4,4160.3,0.00293536]
[1761661772980,3.9892,4160.4,4160.3,0.00293536]
[1761661773278,0.5598,4159.1,4158.7,3.2078]
[1761661773980,0.7814,4159.1,4158.7,3.64064]
[1761661774178,0.56182963,4159.1,4159.0,0.05241965]
[1761661774473,0.00202963,4159.1,4159.0,0.25971965]
[1761661775972,0.00202963,4159.1,4159.0,0.18771965]
[1761661776174,0.34702963,4159.1,4159.0,0.14261965]
[1761661776478,0.58982963,4159.1,4159.0,0.14261965]
[1761661776678,0.34702963,4159.1,4159.0,0.14261965]
[1761661777075,0.34702963,4159.1,4159.0,0.18771965]
[1761661777981,0.00202963,4159.1,4159.0,0.18771965]
[1761661778577,0.00202963,4159.1,4159.0,8.62053965]
[1761661778777,3.2078,4159.8,4159.7,0.56804]
[1761661778975,0.4808,4160.0,4159.9,0.0902]
[1761661779175,0.7236,4160.0,4159.9,0.0902]
[1761661779577,0.4808,4160.0,4159.9,0.52292]
[1761661779788,0.48370316,4160.0,4159.9,0.56802]
[1761661780273,0.00290316,4160.0,4159.9,0.56802]
[1761661780777,0.00290316,4160.0,4159.9,0.64002]
[1761661780973,0.00290316,4160.0,4159.9,0.56802]
[1761661781978,3.5528,4160.8,4160.7,0.0902]
[1761661782176,3.5528,4160.8,4160.7,0.1353]
[1761661782377,3.5528,4160.8,4160.7,0.0902]
[1761661782578,3.5528,4160.8,4160.7,0.1622]
[1761661782779,0.4808,4161.0,4160.9,0.1353]
[1761661782980,3.5528,4161.3,4161.2,0.0451]
[1761661783176,3.45360479,4161.3,4161.2,0.0902]
[1761661783376,0.00300479,4161.3,4161.2,0.2073]
[1761661785490,0.59080479,4161.3,4160.9,3.2078]
[1761661785683,0.4971,4161.0,4160.9,3.298]
[1761661785885,0.4971,4161.0,4160.9,3.3431]
[1761661786190,0.00300479,4161.3,4161.2,0.1353]
[1761661786581,0.34800479,4161.3,4161.2,0.1353]
[1761661786784,0.34800479,4161.3,4161.2,0.0902]
[1761661787694,0.00300479,4161.3,4161.2,0.2073]
[1761661788591,0.34800479,4161.3,4161.2,0.0902]
[1761661789382,0.00300479,4161.3,4161.2,0.2073]
[1761661790394,0.34800479,4161.3,4161.2,0.2073]
[1761661790593,0.34800479,4161.3,4161.2,0.1353]
[1761661791285,0.00300479,4161.3,4161.2,0.1353]
[1761661791490,0.00300479,4161.3,4161.2,0.2073]
[1761661792084,0.34800479,4161.3,4161.2,0.2073]
[1761661792387,0.34800479,4161.3,4161.2,0.0902]
[1761661792588,0.34800479,4161.3,4161.2,0.52279]
[1761661792989,0.34800479,4161.3,4161.2,0.56789]
[1761661793790,0.34800479,4161.3,4161.2,0.52279]
[1761661794195,0.34800479,4161.3,4161.2,0.63989]
[1761661794986,0.34800479,4161.3,4161.2,0.52279]
[1761661795288,0.34800479,4161.3,4161.2,0.59479]
[1761661795994,0.34800479,4161.3,4161.2,0.63989]
[1761661796595,0.00300479,4161.3,4161.2,0.63989]
[1761661796793,0.00300479,4161.3,4161.2,0.56789]
[1761661796993,0.00300479,4161.3,4161.2,0.63989]
[1761661797386,0.00300479,4161.3,4161.2,0.56789]
[1761661797591,0.59080479,4161.3,4161.2,0.47769]
[1761661797790,0.81790479,4161.3,4161.2,0.0451]
[1761661798188,0.967,4161.0,4160.9,3.2529]
[1761661798388,0.967,4161.0,4160.9,3.73062]
[1761661799094,0.7399,4161.0,4160.9,3.73062]
[1761661799492,0.4971,4161.0,4160.9,3.80262]
[1761661799700,0.4971,4161.0,4160.9,3.73062]
[1761661800297,0.967,4161.0,4160.9,3.2529]
[1761661801003,0.7399,4161.0,4160.9,3.73062]
[1761661801301,0.34800479,4161.3,4161.2,0.56789]
[1761661801505,0.00300479,4161.3,4161.2,0.56789]
[1761661801704,0.00300479,4161.3,4161.2,0.63989]
[1761661802099,0.345,4161.7,4161.2,0.2073]
[1761661802304,3.3599,4162.5,4161.9,0.0902]
[1761661802505,3.3599,4162.5,4161.9,0.52271]
[1761661802798,0.4971,4162.0,4161.9,0.0902]
[1761661802999,0.4971,4162.0,4161.9,0.52271]
[1761661803202,0.96995543,4162.0,4161.9,0.0451]
[1761661803401,0.2428,4160.8,4160.7,0.0902]
[1761661803706,0.967,4160.5,4160.4,3.2529]
[1761661803907,0.967,4160.5,4160.4,3.298]
[1761661804307,0.967,4160.5,4160.4,3.2078]
[1761661804507,0.4971,4160.5,4160.4,3.2078]
[1761661804718,0.9648,4160.5,4160.4,3.2078]
[1761661805304,0.3713,4161.5,4161.4,0.0686]
[1761661805515,0.15505543,4162.0,4161.9,0.1372]
[1761661805814,0.00295543,4162.0,4161.9,0.2058]
[1761661806003,0.35955543,4162.0,4161.9,0.1372]
[1761661806203,0.60805543,4162.0,4161.9,0.1372]
[1761661806602,0.00295543,4162.0,4161.9,0.2058]
[1761661806806,0.00295543,4162.0,4161.9,3.4856]
[1761661807002,0.0874,4163.0,4162.9,0.1372]
[1761661807211,3.427,4163.4,4163.3,0.1186]
[1761661807416,3.7884,4163.4,4163.3,0.1186]
[1761661807716,3.3452,4164.5,4163.9,0.2318]
[1761661807908,0.3255,4164.3,4164.2,0.2318]
[1761661808209,0.9034,4164.0,4163.9,0.00272157]
[1761661808607,0.9034,4164.0,4163.9,0.11862157]
[1761661808816,0.9034,4164.0,4163.9,0.00272157]
[1761661809513,0.9754,4164.0,4163.9,0.00272157]
[1761661809709,0.9034,4164.0,4163.9,0.00272157]
[1761661809911,4.1112,4164.0,4163.9,0.00272157]
[1761661810102,3.8577,4164.0,4162.6,3.2078]
[1761661810306,0.3975,4163.9,4162.6,3.2078]
[1761661810515,0.3255,4163.8,4162.6,3.2078]
[1761661811014,0.3255,4163.8,4162.6,3.3237]
[1761661811212,0.3255,4163.8,4162.6,3.3266183]
[1761661811415,0.3255,4163.8,4162.6,3.7590583]
[1761661811610,0.3255,4163.8,4162.7,0.54833]
[1761661811808,0.3255,4163.8,4162.8,0.1159]
[1761661812010,0.3255,4163.8,4163.2,3.2078]
[1761661812211,0.4557,4164.0,4163.9,0.2318]
[1761661812614,0.9034,4164.0,4163.9,0.1159]
[1761661814111,0.5466,4163.8,4163.7,3.3237]
[1761661814618,0.7732,4163.8,4163.7,0.2318]
[1761661814810,0.5466,4163.8,4163.7,0.2318]
[1761661815716,0.7732,4163.8,4163.7,0.1159]
[1761661815911,0.3255,4163.7,4163.6,0.1159]
[1761661816111,0.1302,4164.0,4163.9,0.2318]
[1761661816617,0.6768,4164.0,4163.9,0.2318]
[1761661817317,0.7732,4163.2,4163.1,3.3237]
[1761661817618,0.7732,4163.2,4163.1,0.1159]
[1761661818010,0.3255,4163.2,4163.1,3.5116]
[1761661818212,0.3255,4163.4,4163.3,0.3477]
[1761661818611,0.3255,4163.9,4163.3,0.3477]
[1761661818814,0.3255,4163.8,4163.1,3.2078]
[1761661819018,0.7732,4163.2,4163.1,3.2078]
[1761661820319,0.7732,4163.2,4163.1,3.3237]
[1761661820513,0.7732,4163.2,4163.1,3.2078]
[1761661821324,0.3255,4163.1,4162.6,0.0029183]
[1761661821520,0.7732,4162.7,4162.6,0.1188183]
[1761661821826,0.7732,4162.7,4162.6,0.0029183]
[1761661822915,0.8452,4162.7,4162.6,0.0029183]
[1761661823115,0.7732,4162.7,4162.6,0.0029183]
[1761661823318,0.8452,4162.7,4162.6,0.0029183]
[1761661823926,0.7732,4162.7,4162.6,0.0029183]
[1761661824429,41.5732,4162.7,4162.6,0.0029183]
[1761661824728,0.3255,4162.7,4162.6,0.2347183]
[1761661825027,0.5466,4162.7,4162.6,0.2347183]
[1761661825720,0.3255,4162.7,4162.6,0.2347183]
[1761661826028,0.5466,4162.7,4162.6,0.2347183]
[1761661826323,0.7732,4162.7,4162.6,0.2347183]
[1761661826517,0.3255,4162.7,4162.6,0.2347183]
[1761661826718,0.3255,4162.7,4162.6,0.3506183]
[1761661826918,0.5466,4162.7,4162.6,0.2347183]
[1761661828225,0.7732,4162.7,4162.6,0.0029183]
[1761661828828,0.7732,4162.7,4162.6,0.1188183]
[1761661829123,0.7732,4162.7,4162.6,0.2347183]
[1761661829928,0.7732,4162.7,4162.6,0.0029183]
[1761661830938,0.7732,4162.7,4162.6,0.1188183]
[1761661831228,0.7732,4162.7,4162.6,0.0029183]
[1761661831525,0.7732,4161.8,4161.7,3.3237]
[1761661831725,0.7732,4161.8,4161.7,3.2078]
[1761661832030,0.7732,4161.8,4161.7,3.3237]
[1761661832227,0.3255,4161.8,4161.7,3.4396]
[1761661832532,0.4557,4162.0,4161.9,0.66431]
[1761661832924,0.4557,4162.0,4161.9,0.2318]
[1761661833631,0.7732,4161.8,4161.7,3.75878659]
[1761661834226,0.5466,4161.8,4161.7,3.87468659]
[1761661834427,0.3255,4161.8,4161.7,3.98128659]
[1761661834633,0.3255,4161.8,4161.7,4.05328659]
[1761661834833,0.1302,4162.5,4162.3,0.2132]
[1761661834834,0.2122,4162.4,4162.3,0.2132]
[1761661835333,0.5473,4162.4,4162.3,0.2132]
[1761661835832,0.3351,4163.1,4162.7,0.2132]
[1761661836029,3.3355,4164.0,4163.9,0.2081]
[1761661836030,0.1277,4164.0,4163.9,0.2081]
[1761661836231,0.1277,4164.0,4163.9,0.4162]
[1761661836419,0.3399,4164.0,4163.9,0.2081]
[1761661836619,0.4421,4163.6,4163.5,3.4159]
[1761661836825,0.4421,4163.6,4162.8,0.2081]
[1761661837232,0.4421,4163.6,4163.1,0.43239]
[1761661837531,0.1277,4164.0,4163.9,0.4162]
[1761661837734,0.3399,4164.0,4163.9,0.4162]
[1761661837925,0.9049,4164.0,4163.9,0.2081]
[1761661838620,0.9049,4164.0,4163.4,3.4159]
[1761661838825,0.5473,4163.5,4163.4,3.4159]
[1761661839436,0.5473,4163.5,4163.4,3.624]
[1761661839825,0.3351,4163.5,4163.4,3.624]
[1761661840538,0.5473,4163.5,4163.4,3.624]
[1761661840935,0.7772,4163.5,4163.4,3.2078]
[1761661841137,0.2122,4163.1,4163.0,0.6405]
[1761661841334,0.5473,4163.1,4163.0,0.6405]
[1761661841636,0.3351,4163.1,4163.0,0.8486]
[1761661841828,0.1277,4163.4,4163.3,0.2081]
[1761661841829,0.3399,4163.4,4163.3,0.2081]
[1761661842029,0.2122,4163.0,4162.9,3.4159]
[1761661842224,0.2122,4163.0,4162.4,3.2078]
[1761661842225,0.4421,4163.0,4162.4,3.2078]
[1761661842425,0.7772,4162.5,4162.4,3.2078]
[1761661843438,0.7772,4162.0,4161.9,3.2078]
[1761661843936,0.7772,4162.0,4161.9,3.4159]
[1761661845144,0.5473,4162.0,4161.9,3.624]
[1761661845343,0.3351,4162.0,4161.9,3.624]
[1761661845539,0.3351,4162.0,4161.9,3.8321]
[1761661845745,0.5473,4162.7,4162.6,0.2081]
[1761661846439,0.5473,4162.7,4162.6,0.4162]
[1761661846637,0.3351,4162.7,4162.6,0.4162]
[1761661846834,0.5473,4162.7,4162.6,0.4162]
[1761661847034,0.5473,4162.7,4162.6,0.2081]
[1761661847542,0.3351,4163.1,4162.7,0.4162]
[1761661847844,0.7772,4163.1,4163.0,0.2081]
[1761661848843,0.7772,4162.7,4162.6,0.2081]
[1761661849845,0.5473,4162.5,4162.4,3.4159]
[1761661850240,0.5473,4162.5,4162.4,3.624]
[1761661850542,0.5473,4162.5,4162.4,4.05646]
[1761661850743,0.7772,4162.5,4162.4,3.2078]
[1761661850931,0.565,4162.5,4162.4,3.4159]
[1761661851140,3.42283114,4164.5,4164.4,0.2302]
[1761661851332,0.00283114,4164.5,4164.4,0.7743]
[1761661852143,0.2122,4164.2,4164.1,0.5532]
[1761661852341,0.00283114,4164.5,4164.4,0.7743]
[1761661852847,0.21503114,4164.5,4164.4,0.7743]
[1761661853247,0.00283114,4164.5,4164.4,0.7743]
[1761661854941,6.94460455,4165.7,4165.6,0.2302]
[1761661855140,7.15680455,4165.7,4165.6,0.5532]
[1761661855748,6.94460455,4165.7,4165.6,0.7743]
[1761661855943,6.94757559,4165.7,4165.6,0.84798667]
[1761661856147,0.00297104,4165.7,4165.6,0.84798667]
[1761661856346,3.2078,4166.5,4166.4,0.5532]
[1761661856648,3.2078,4166.5,4166.4,0.9111]
[1761661856845,3.2078,4167.1,4166.6,0.323]
[1761661857046,3.2078,4167.1,4167.0,0.9111]
[1761661857251,3.21081838,4167.1,4167.0,0.9111]
[1761661857644,0.00301838,4167.1,4167.0,0.9111]
[1761661858052,0.2122,4166.7,4166.6,0.323]
[1761661858348,0.2122,4166.7,4166.6,0.5532]
[1761661858549,0.2122,4166.7,4166.6,0.7743]
[1761661859247,0.2122,4166.5,4166.4,0.323]
[1761661859952,0.2122,4166.5,4166.4,0.5532]
[1761661860153,0.00301838,4167.1,4166.5,0.323]
[1761661860453,0.2122,4166.6,4166.5,0.5532]
[1761661861050,0.7772,4166.2,4166.1,3.5308]
[1761661862142,0.4421,4166.2,4166.1,3.761]
[1761661862338,0.3351,4166.7,4166.2,0.323]
[1761661863250,0.2122,4166.3,4166.2,0.5532]
[1761661863646,0.2122,4166.7,4166.6,0.2302]
[1761661863852,0.2122,4166.7,4166.6,0.7743]
[1761661864745,0.4481,4166.5,4166.4,0.3427]
[1761661864948,0.4481,4166.5,4165.8,0.56891]
[1761661864949,0.766,4166.5,4165.9,0.3427]
[1761661865151,0.766,4166.0,4165.9,0.5538]
[1761661865352,0.766,4165.8,4165.7,3.5505]
[1761661865553,0.4481,4165.8,4165.7,3.7616]
[1761661865847,0.2214,4166.0,4165.9,0.5538]
[1761661866053,0.2214,4166.0,4165.9,0.7763]
[1761661866254,0.3179,4166.5,4165.9,0.4336]
[1761661866543,0.3179,4166.5,4166.4,0.2111]
[1761661866544,0.2214,4166.5,4166.4,0.2111]
[1761661866743,0.2214,4166.5,4166.4,0.5538]
[1761661868652,0.2214,4166.5,4165.9,0.4321]
[1761661868653,0.3162,4166.4,4165.9,0.3326]
[1761661869150,0.2186,4166.4,4166.3,0.7661]
[1761661871150,0.4457,4166.4,4165.9,0.4321]
[1761661871454,0.7619,4166.0,4165.9,0.3326]
[1761661872061,0.4457,4166.0,4165.9,0.5422]
[1761661873752,0.7619,4166.0,4165.9,0.5422]
[1761661873958,0.2186,4165.7,4165.6,0.21128667]
[1761661874159,0.4457,4165.7,4165.6,0.21128667]
[1761661874662,0.4457,4165.7,4165.6,0.54388667]
[1761661875655,0.7619,4166.0,4165.9,0.5422]
[1761661875851,0.2186,4165.7,4165.6,0.00168667]
[1761661876060,0.4457,4165.7,4165.6,0.21128667]
[1761661876258,0.7619,4165.7,4165.6,0.21128667]
[1761661876460,0.7619,4165.7,4165.6,0.00168667]
[1761661876656,0.8339,4165.7,4165.6,0.00168667]
[1761661876857,0.7619,4165.7,4165.6,0.00168667]
[1761661877158,0.8339,4165.7,4165.6,0.00168667]
[1761661877360,0.7619,4165.7,4165.6,0.00168667]
[1761661877559,0.8339,4165.7,4165.6,0.00168667]
[1761661877759,0.7619,4165.7,4165.6,0.00168667]
[1761661877959,0.4457,4165.7,4165.6,0.76778667]
[1761661878155,3.2078,4165.8,4165.7,0.4335]
[1761661878359,3.4264,4165.8,4165.7,0.7661]
[1761661878563,0.7619,4165.1,4165.0,0.19552193]
[1761661878759,0.4457,4165.1,4165.0,0.7661]
[1761661878965,0.2186,4165.1,4165.0,0.7661]
[1761661879163,0.2186,4164.8,4164.7,0.5422]
[1761661879459,0.2186,4164.8,4164.7,0.76807985]
[1761661879652,0.7619,4164.8,4164.7,0.19157149]
[1761661879858,0.4457,4164.8,4164.7,0.73377149]
[1761661880057,0.7619,4164.8,4164.7,0.73377149]
[1761661880456,0.4457,4164.8,4164.7,0.73377149]
[1761661880968,0.7619,4164.8,4164.7,0.73377149]
[1761661881260,0.4457,4164.8,4164.7,1.40429149]
[1761661881469,0.7628,4165.2,4165.1,0.3297]
[1761661881667,0.4205,4164.9,4164.8,0.43221]
[1761661881867,0.2109,4165.2,4165.1,0.2192]
[1761661882170,0.2109,4165.2,4165.1,0.5489]
[1761661882667,0.4205,4165.2,4165.1,0.5489]
[1761661882869,0.4205,4165.2,4165.1,0.7776]
[1761661883670,0.7628,4165.2,4165.1,0.7776]
[1761661884064,0.4205,4165.2,4165.1,0.7776]
[1761661884269,41.1423,4165.6,4165.5,0.5489]
[1761661884469,0.4205,4164.8,4164.7,0.96917149]
[1761661885562,0.7628,4164.8,4164.7,0.74047149]
[1761661886360,0.2109,4164.2,4164.1,3.2078]
[1761661886568,0.7628,4163.2,4163.1,0.3297]
[1761661886767,0.4205,4163.2,4163.1,0.7776]
[1761661887069,0.2109,4162.9,4162.8,0.3475]
[1761661887370,0.4205,4162.6,4162.5,0.2192]
[1761661887568,0.2109,4162.3,4162.2,0.5489]
[1761661887776,0.4205,4161.8,4161.7,0.5489]
[1761661888076,0.7628,4161.7,4161.6,3.2078]
[1761661888269,0.7628,4161.7,4161.6,3.21011942]
[1761661888463,0.7628,4161.7,4161.6,0.00231942]
[1761661889572,0.8348,4161.7,4161.6,0.00231942]
[1761661889974,0.2109,4160.6,4160.5,0.1283]
[1761661890171,0.2109,4160.1,4160.0,3.2078]
[1761661890370,0.2109,4160.1,4160.0,3.427]
[1761661890672,0.2109,4160.1,4160.0,3.2078]
[1761661890673,0.7628,4160.1,4160.0,3.2078]
[1761661890864,0.7628,4160.1,4160.0,3.5375]
[1761661891065,0.4205,4160.1,4160.0,3.54027321]
[1761661891274,0.7628,4160.1,4160.0,0.00277321]
[1761661891867,0.8882,4160.1,4160.0,0.00277321]
[1761661892067,0.9602,4160.1,4160.0,0.00277321]
[1761661892674,41.7602,4160.1,4160.0,0.00277321]
[1761661894269,49.4179,4160.1,4158.8,0.3297]
[1761661894474,3.549,4159.7,4158.8,0.3297]
[1761661894777,3.549,4159.7,4158.9,0.3453]
[1761661895380,3.55098763,4159.7,4158.9,0.34827545]
[1761661895977,0.3412,4159.6,4158.9,0.34827545]
[1761661896277,3.2078,4159.2,4158.9,0.34827545]
[1761661896470,0.7789,4159.0,4158.9,0.00297545]
[1761661897073,41.5789,4159.0,4158.9,0.00297545]
[1761661897575,41.0202,4159.0,4158.9,0.77797545]
[1761661897788,3.2078,4159.2,4159.1,0.8625]
[1761661897972,0.22218763,4159.7,4159.6,0.5549]
[1761661898477,41.58088763,4159.7,4159.3,0.3453]
[1761661898667,0.2202,4159.4,4159.3,0.3453]
[1761661898869,0.2202,4159.4,4159.3,0.5549]
[1761661899371,0.7789,4159.2,4159.1,3.5531]
[1761661899770,0.7789,4159.0,4158.9,0.34827545]
[1761661899971,0.7789,4159.0,4158.9,0.00297545]
[1761661900174,4.0587,4159.0,4158.9,0.00297545]
[1761661900386,3.9867,4159.0,4158.9,0.00297545]
[1761661900679,4.0587,4159.0,4158.9,0.34827545]
[1761661900883,4.0587,4159.0,4158.9,0.00297545]